bitfinex-derivatives/quotes_BNBF0:USTF0_20250101
["timestamp","ask_amount","ask_price","bid_price","bid_amount"]
[1735728705465,0.26042557,707.22,706.31,1.86234278]
[1735728705666,0.26043754,707.21,706.31,1.86234278]
[1735728705869,0.26043754,707.2,706.31,0.814]
[1735728706064,0.26043754,707.19,706.31,0.814]
[1735728706268,1.05985948,707.27,706.31,0.814]
[1735728706570,0.26044717,707.26,706.31,0.814]
[1735728706964,1.05985948,707.22,706.31,0.814]
[1735728707167,0.26044717,707.21,706.31,0.814]
[1735728708166,0.26044717,707.2,706.31,0.814]
[1735728708371,0.26046094,707.19,706.31,0.814]
[1735728708569,0.26046094,707.18,706.31,0.814]
[1735728708766,0.26046094,707.17,706.31,0.814]
[1735728708972,0.26046094,707.16,706.31,0.814]
[1735728709275,1.05985948,707.26,706.31,0.814]
[1735728709573,0.26043384,707.25,706.31,0.814]
[1735728710468,0.26043384,707.24,706.31,0.814]
[1735728710667,1.05985948,707.32,706.31,0.814]
[1735728711171,0.26041828,707.31,706.31,0.814]
[1735728711569,0.28275345,707.33,706.31,0.814]
[1735728711772,0.26041232,707.32,706.31,0.814]
[1735728714376,0.28275345,707.33,706.31,0.814]
[1735728714571,0.2604243,707.32,706.31,0.814]
[1735728714771,0.28275345,707.33,706.31,0.814]
[1735728714971,0.26042395,707.32,706.31,0.814]
[1735728715372,0.28275345,707.33,706.31,0.814]
[1735728716777,0.26042221,707.32,706.31,0.814]
[1735728721179,0.26044654,707.31,706.31,0.814]
[1735728721382,0.26044654,707.3,706.31,0.814]
[1735728721681,0.26044654,707.29,706.31,0.814]
[1735728721879,0.26044654,707.32,706.31,1.857]
[1735728722079,0.26044654,707.31,706.31,1.857]
[1735728722280,0.26044654,707.3,706.31,1.857]
[1735728722477,0.26044654,707.29,706.31,1.857]
[1735728722678,0.26044654,707.28,706.31,1.857]
[1735728722879,0.26044654,707.27,706.31,1.857]
[1735728723083,0.26044654,707.26,706.31,1.857]
[1735728723277,1.76004748,707.33,706.31,1.857]
[1735728723278,0.26044654,707.25,706.31,1.857]
[1735728723482,0.26044654,707.24,706.31,1.857]
[1735728723679,2.81990696,707.33,706.31,1.857]
[1735728723877,0.26044649,707.32,706.31,1.857]
[1735728724684,1.32030597,707.32,706.31,1.857]
[1735728724886,0.26044649,707.31,706.31,1.857]
[1735728725581,0.26044649,707.3,706.31,1.857]
[1735728725786,0.26044649,707.29,706.31,1.857]
[1735728726084,0.26044649,707.28,706.31,1.857]
[1735728726283,0.26044649,707.32,706.31,1.857]
[1735728726483,0.26044649,707.31,706.31,1.857]
[1735728726684,0.26044649,707.3,706.31,1.857]
[1735728726884,0.26044649,707.29,706.31,1.857]
[1735728727084,0.26044649,707.28,706.31,1.857]
[1735728727385,1.05985948,707.32,706.31,1.857]
[1735728727386,0.26044649,707.27,706.31,1.857]
[1735728727585,0.26044649,707.26,706.31,1.857]
[1735728727780,1.05985948,707.32,706.31,1.857]
[1735728727978,0.26043189,707.31,706.31,1.857]
[1735728728879,1.76004748,707.33,706.31,1.857]
[1735728728880,0.2604314,707.3,706.31,1.857]
[1735728729084,0.2604314,707.29,706.31,1.857]
[1735728729283,0.2604314,707.28,706.31,1.857]
[1735728729480,0.2604314,707.27,706.31,1.857]
[1735728729686,0.26043612,707.26,706.31,1.857]
[1735728729886,2.81990696,707.33,706.31,1.857]
[1735728730086,0.26043142,707.32,706.31,1.857]
[1735728730490,1.05985948,707.29,706.31,1.857]
[1735728730788,0.26043142,707.28,706.31,1.857]
[1735728731788,1.05985948,707.24,706.31,1.857]
[1735728731987,0.26043351,707.23,706.31,1.857]
[1735728732587,0.26043351,707.23,706.33,1.04834278]
[1735728732782,0.26043351,707.22,706.33,1.04834278]
[1735728732986,0.26043351,707.21,706.33,1.04834278]
[1735728733187,0.26043351,707.2,706.33,1.04834278]
[1735728733383,0.26043351,707.19,706.33,1.04834278]
[1735728733587,1.05985948,707.26,706.35,1.04834278]
[1735728733789,0.26042201,707.25,706.35,1.04834278]
[1735728735590,1.05985948,707.26,706.35,1.04834278]
[1735728735791,1.05985948,707.27,706.37,1.04834278]
[1735728736395,0.26042748,707.26,706.37,1.04834278]
[1735728736994,0.26042748,707.26,706.31,1.043]
[1735728736995,0.26043425,707.25,706.31,1.043]
[1735728737195,0.26043425,707.24,706.31,1.043]
[1735728737396,0.26043425,707.23,706.31,1.043]
[1735728737697,1.05985948,707.3,706.31,1.043]
[1735728737890,0.26043479,707.29,706.31,1.043]
[1735728738290,1.05985948,707.26,706.31,1.043]
[1735728738495,0.26043479,707.25,706.31,1.043]
[1735728738696,0.26043479,707.25,706.31,2.015]
[1735728738998,1.05985948,707.26,706.31,2.015]
[1735728739198,0.26042473,707.25,706.31,2.015]
[1735728739697,1.05985948,707.26,706.31,2.015]
[1735728739898,0.26042518,707.25,706.33,1.04834278]
[1735728740098,1.05985948,707.28,706.33,1.04834278]
[1735728740398,0.26042442,707.27,706.33,1.04834278]
[1735728740599,1.05985948,707.28,706.33,1.04834278]
[1735728741799,0.26042605,707.27,706.33,1.04834278]
[1735728742500,0.26042605,707.27,706.31,3.06334278]
[1735728742692,1.05985948,707.3,706.31,3.06334278]
[1735728742897,0.26042609,707.29,706.31,3.06334278]
[1735728743498,0.26042609,707.29,706.32,1.04834278]
[1735728743499,1.05985948,707.28,706.32,1.04834278]
[1735728743699,0.26042609,707.27,706.32,1.04834278]
[1735728743898,1.05985948,707.28,706.32,1.04834278]
[1735728744501,1.05985948,707.28,706.31,0.972]
[1735728744502,1.05985948,707.28,706.33,1.04834278]
[1735728745603,0.26042256,707.27,706.33,1.04834278]
[1735728746102,0.26042256,707.27,706.33,2.09534278]
[1735728746299,1.05985948,707.23,706.39,1.04834278]
[1735728746502,0.26042256,707.22,706.39,1.04834278]
[1735728747502,1.32028204,707.22,706.39,1.04834278]
[1735728747695,1.05985948,707.22,706.39,1.04834278]
[1735728747896,0.26042517,707.21,706.39,1.04834278]
[1735728748801,0.26042517,707.21,706.38,1.04834278]
[1735728749702,0.26042517,707.21,706.39,1.04834278]
[1735728750103,1.05985948,707.22,706.39,1.04834278]
[1735728750801,0.26042185,707.21,706.36,1.04834278]
[1735728751004,0.26042185,707.2,706.36,1.04834278]
[1735728751304,1.05985948,707.25,706.36,1.04834278]
[1735728751503,0.26042227,707.24,706.36,1.04834278]
[1735728751903,1.05985948,707.22,706.4,1.04834278]
[1735728752906,1.05985948,707.22,706.33,1.047]
[1735728752907,0.26042911,707.21,706.39,1.04834278]
[1735728753097,0.26043049,707.2,706.39,1.04834278]
[1735728753303,1.05985948,707.23,706.39,1.04834278]
[1735728753496,0.26043049,707.22,706.39,1.04834278]
[1735728753704,0.26043084,707.21,706.39,1.04834278]
[1735728753999,0.26043084,707.2,706.39,1.04834278]
[1735728754205,0.26043084,707.2,706.33,1.047]
[1735728754206,0.26043497,707.19,706.37,1.04834278]
[1735728754399,0.26043497,707.18,706.37,1.04834278]
[1735728754599,0.26043497,707.17,706.37,1.04834278]
[1735728754799,0.26043497,707.16,706.37,1.04834278]
[1735728755003,0.26043497,707.15,706.37,1.04834278]
[1735728755203,1.05985948,707.21,706.37,1.04834278]
[1735728755506,0.26044865,707.2,706.37,1.04834278]
[1735728755700,0.26044865,707.2,706.33,1.047]
[1735728755701,1.05985948,707.16,706.33,2.09534278]
[1735728755898,0.00085948,707.16,706.33,2.09534278]
[1735728756804,1.47737765,707.28,706.33,1.047]
[1735728759205,0.28275345,707.33,706.33,1.047]
[1735728761305,0.28275345,707.33,706.33,2.09534278]
[1735728762611,0.28275345,707.33,706.39,1.04834278]
[1735728763808,0.28275345,707.33,706.4,1.04834278]
[1735728764608,0.28275345,707.33,706.39,1.04834278]
[1735728765801,0.28275345,707.33,706.38,1.04834278]
[1735728767009,0.28275345,707.33,706.31,0.972]
[1735728767010,0.28275345,707.33,706.37,1.04834278]
[1735728769509,0.28275345,707.33,706.33,1.04834278]
[1735728770512,0.28275345,707.33,706.3,1.04834278]
[1735728772514,0.28275345,707.33,706.29,1.04834278]
[1735728773617,0.28275345,707.33,706.28,1.04834278]
[1735728778316,0.28275345,707.33,706.3,1.04834278]
[1735728779616,0.28275345,707.33,706.32,1.04834278]
[1735728781318,0.28275345,707.33,706.35,1.04834278]
[1735728784217,0.28275345,707.33,706.33,1.04834278]
[1735728785522,0.28275345,707.33,706.02,0.28327809]
[1735728785523,0.28275345,707.33,706.34,1.04834278]
[1735728786124,0.28275345,707.33,706.35,1.114]
[1735728790224,0.28275345,707.33,706.35,2.08]
[1735728794730,0.26042314,707.32,706.35,2.08]
[1735728796923,0.28275345,707.33,706.35,2.08]
[1735728797122,0.26041688,707.32,706.35,2.08]
[1735728797329,0.28275345,707.33,706.35,2.08]
[1735728797831,1.47731494,707.32,706.35,2.08]
[1735728806934,0.26044875,707.31,706.35,2.08]
[1735728808338,0.26046077,707.3,706.35,2.08]
[1735728808633,0.26046077,707.29,706.35,2.08]
[1735728808834,0.26046077,707.28,706.35,2.08]
[1735728809037,0.26047146,707.27,706.35,2.08]
[1735728809236,0.26047146,707.26,706.35,2.08]
[1735728809439,0.26047146,707.25,706.35,2.08]
[1735728809641,1.47731494,707.32,706.35,2.08]
[1735728809837,0.26047173,707.31,706.35,2.08]
[1735728811141,0.26046714,707.3,706.35,2.08]
[1735728811340,0.26046714,707.29,706.35,2.08]
[1735728811538,1.47731494,707.32,706.35,2.08]
[1735728811737,0.26046336,707.31,706.35,2.08]
[1735728813645,1.47731494,707.32,706.35,2.08]
[1735728813842,0.26047031,707.31,706.35,2.08]
[1735728814946,1.47731494,707.32,706.35,2.08]
[1735728815250,1.47731494,707.32,706.35,0.966]
[1735728819843,0.28275345,707.33,706.35,0.966]
[1735728822048,0.26044691,707.32,706.35,0.966]
[1735728824443,0.26044723,707.31,706.35,0.966]
[1735728824643,0.26044723,707.3,706.35,0.966]
[1735728824841,0.28275345,707.33,706.35,0.966]
[1735728824842,0.26044723,707.29,706.35,0.966]
[1735728825148,0.26044523,707.28,706.35,0.966]
[1735728825347,0.54322267,707.27,706.35,0.966]
[1735728825545,0.26044523,707.26,706.35,0.966]
[1735728826949,0.28277744,707.27,706.35,0.966]
[1735728832351,0.28277744,707.27,706.35,2.002]
[1735728840852,0.26041734,707.26,706.35,2.002]
[1735728841451,0.26041696,707.25,706.35,2.002]
[1735728841654,0.28277744,707.27,706.35,2.002]
[1735728844354,0.26040651,707.26,706.35,2.002]
[1735728844658,0.26040651,707.26,706.36,0.946]
[1735728845757,0.28277744,707.27,706.36,0.946]
[1735728846155,1.47717384,707.47,706.36,0.946]
[1735728846353,0.2603549,707.46,706.36,0.946]
[1735728846558,0.2603549,707.45,706.36,0.946]
[1735728846757,0.2603549,707.44,706.36,0.946]
[1735728846952,0.2603549,707.43,706.36,0.946]
[1735728847152,0.2603549,707.42,706.36,0.946]
[1735728847356,1.4770171,707.63,706.52,1.04834278]
[1735728847357,0.2603549,707.41,706.52,1.04834278]
[1735728847557,0.2603549,707.4,706.52,1.04834278]
[1735728847857,1.4770171,707.63,706.52,1.04834278]
[1735728848051,0.26034088,707.62,706.52,1.04834278]
[1735728848757,0.26034088,707.62,706.51,1.04834278]
[1735728849660,0.26034088,707.62,706.51,3.39434278]
[1735728850061,0.26034088,707.62,706.51,2.346]
[1735728850661,1.4770171,707.63,706.51,2.346]
[1735728850962,0.26035472,707.62,706.51,2.346]
[1735728853362,1.4770171,707.63,706.51,2.346]
[1735728853363,0.26036087,707.61,706.51,2.346]
[1735728853558,0.26036087,707.6,706.51,2.346]
[1735728853768,0.26036087,707.59,706.51,2.346]
[1735728854064,0.54301042,707.59,706.51,2.346]
[1735728854363,0.26036087,707.58,706.51,2.346]
[1735728855963,0.2604093,707.57,706.51,2.346]
[1735728856161,0.2604093,707.56,706.51,2.346]
[1735728856363,0.2604093,707.55,706.51,2.346]
[1735728859767,1.47695442,707.54,706.51,2.346]
[1735728869977,0.28266154,707.56,706.51,2.346]
[1735728870577,0.28266154,707.56,706.52,0.886]
[1735728875977,0.28266154,707.56,706.56,1.04834278]
[1735728876684,0.28266154,707.56,706.54,1.04834278]
[1735728878384,0.28266154,707.56,706.52,0.886]
[1735728895496,0.28266154,707.56,706.26,1.04834278]
[1735728896399,0.28266154,707.56,705.92,1.04834278]
[1735728896400,0.28266154,707.56,706.27,1.04834278]
[1735728897493,0.28266154,707.56,706.28,1.04834278]
[1735728897698,0.28266154,707.56,706.29,0.2831698]
[1735728898901,0.28266154,707.56,706.3,1.04834278]
[1735728899101,0.28266154,707.56,706.31,0.28316178]
[1735728900400,0.28266154,707.56,706.61,1.04834278]
[1735728901995,0.28266154,707.56,706.57,1.04834278]
[1735728903294,0.28266154,707.56,706.31,1.33150456]
[1735728903295,0.28266154,707.56,706.58,1.04834278]
[1735728906199,0.28266154,707.56,706.55,1.04834278]
[1735728907200,0.28266154,707.56,706.49,1.04834278]
[1735728908499,0.28266154,707.56,706.45,1.04834278]
[1735728909904,0.28266154,707.56,706.5,1.04834278]
[1735728910098,0.26030918,707.55,706.5,1.04834278]
[1735728911298,0.28266154,707.56,706.5,1.04834278]
[1735728911504,0.28266154,707.56,706.45,1.184]
[1735728911505,0.28266154,707.56,706.56,1.04834278]
[1735728912606,0.28266154,707.56,706.45,1.184]
[1735728916509,0.28266154,707.56,706.46,0.966]
[1735728918409,0.28266154,707.56,706.51,1.04834278]
[1735728919209,0.28266154,707.56,706.55,1.04834278]
[1735728920614,0.28266154,707.56,706.52,1.04834278]
[1735728921214,1.05906123,707.95,706.52,1.04834278]
[1735728921416,1.4765001,707.8,706.52,1.04834278]
[1735728921816,0.28250981,707.94,706.56,1.04834278]
[1735728922111,1.4764479,707.8,706.56,1.04834278]
[1735728922308,0.28250981,707.94,706.56,1.04834278]
[1735728922512,0.28250981,707.94,706.46,0.966]
[1735728922513,0.26024881,707.93,706.6,1.04834278]
[1735728922713,0.54276261,707.93,706.6,1.04834278]
[1735728922916,0.26024881,707.92,706.6,1.04834278]
[1735728923516,1.47633829,707.91,706.6,1.04834278]
[1735728923716,1.47633829,707.91,706.57,1.04834278]
[1735728925218,1.47633829,707.91,706.56,1.04834278]
[1735728926014,1.47633829,707.91,706.55,1.04834278]
[1735728927319,1.47633829,707.91,706.57,1.04834278]
[1735728928120,0.2602404,707.9,706.57,1.04834278]
[1735728928520,0.2602404,707.9,706.56,1.04834278]
[1735728929218,0.2602404,707.9,706.66,1.04834278]
[1735728932420,0.2602404,707.9,706.63,1.04834278]
[1735728933227,0.2602404,707.9,706.66,1.04834278]
[1735728934227,0.2602404,707.9,706.67,1.04834278]
[1735728935331,0.2602404,707.9,706.64,1.04834278]
[1735728935725,1.47633829,707.91,706.64,1.04834278]
[1735728936831,1.47633829,707.91,706.62,1.04834278]
[1735728937032,1.47633829,707.91,706.64,1.013]
[1735728942635,1.47633829,707.91,706.65,0.834]
[1735728950236,0.2825138,707.93,706.65,0.834]
[1735728951037,0.2825138,707.93,706.65,1.88234278]
[1735728952239,0.2825138,707.93,706.72,1.04834278]
[1735728953641,0.2825138,707.93,706.74,1.04834278]
[1735728954137,0.2825138,707.93,706.74,2.10234278]
[1735728956040,0.2825138,707.93,706.86,1.04834278]
[1735728957036,0.2825138,707.93,706.82,1.04834278]
[1735728958044,0.2825138,707.93,706.8,1.04834278]
[1735728959145,0.2825138,707.93,706.77,1.04834278]
[1735728960445,0.2825138,707.93,706.78,1.04834278]
[1735728961648,0.2825138,707.93,706.74,1.054]
[1735728969151,0.2825138,707.93,706.75,1.088]
[1735728982555,0.2825138,707.93,706.76,1.04834278]
[1735728984058,0.2825138,707.93,706.81,1.04834278]
[1735728985161,0.2825138,707.93,706.82,1.04834278]
[1735728986362,0.2825138,707.93,706.84,1.04834278]
[1735728987261,0.2825138,707.93,706.83,0.958]
[1735728988657,0.26022368,707.92,706.83,0.958]
[1735728989965,0.2825138,707.93,706.83,0.958]
[1735728990166,1.05906123,707.83,706.86,1.04834278]
[1735728991157,0.2825138,707.93,706.83,0.958]
[1735728992162,0.2825138,707.93,706.83,1.841]
[1735728992363,0.26024113,707.92,706.83,1.841]
[1735728993465,1.05906123,707.76,706.83,1.841]
[1735728993656,0.26024113,707.75,706.83,1.841]
[1735728993859,0.26027875,707.74,706.83,1.841]
[1735728994063,1.05906123,707.76,706.83,1.841]
[1735728994768,1.05906123,707.79,706.83,1.841]
[1735728995864,0.2825138,707.93,706.83,1.841]
[1735728996263,1.47623913,707.92,706.83,1.841]
[1735728996463,0.28252178,707.91,706.83,1.841]
[1735729000364,0.28252178,707.91,706.83,0.883]
[1735729001964,0.26031935,707.9,706.83,0.883]
[1735729004568,0.26031458,707.89,706.83,0.883]
[1735729004768,0.26031458,707.88,706.83,0.883]
[1735729004962,0.26031458,707.87,706.83,0.883]
[1735729005161,0.26031458,707.86,706.83,0.883]
[1735729005369,0.26031458,707.85,706.83,0.883]
[1735729005565,0.26031458,707.84,706.83,0.883]
[1735729005772,0.26031458,707.83,706.83,0.883]
[1735729006070,0.26031458,707.82,706.83,0.883]
[1735729006270,0.54287628,707.81,706.83,0.883]
[1735729006472,0.26031458,707.8,706.83,0.883]
[1735729006766,0.28256968,707.79,706.83,0.883]
[1735729006965,0.26031458,707.78,706.83,0.883]
[1735729007170,0.26031495,707.77,706.83,0.883]
[1735729007373,0.28256968,707.79,706.83,0.883]
[1735729007374,0.54289661,707.76,706.83,0.883]
[1735729007573,0.26031495,707.75,706.83,0.883]
[1735729007766,0.28258965,707.74,706.83,0.883]
[1735729007970,0.26031495,707.73,706.83,0.883]
[1735729008471,0.28259763,707.72,706.83,0.883]
[1735729008670,0.26031495,707.71,706.83,0.883]
[1735729009272,0.28259763,707.72,706.83,0.883]
[1735729009773,0.26035815,707.71,706.83,0.883]
[1735729009973,0.26036058,707.71,706.83,0.883]
[1735729010374,0.28260562,707.7,706.83,0.883]
[1735729010572,0.26036058,707.69,706.83,0.883]
[1735729010769,0.28261361,707.68,706.83,0.883]
[1735729011068,0.26036058,707.67,706.83,0.883]
[1735729012276,0.28262159,707.66,706.83,0.883]
[1735729012676,0.26038301,707.65,706.83,0.883]
[1735729013371,0.28262958,707.64,706.83,0.883]
[1735729013575,0.26038301,707.63,706.83,0.883]
[1735729013976,0.28263757,707.62,706.83,0.883]
[1735729014177,0.26038301,707.61,706.83,0.883]
[1735729015379,0.28264556,707.6,706.83,0.883]
[1735729015580,0.26038301,707.59,706.83,0.883]
[1735729015780,0.28265355,707.58,706.83,0.883]
[1735729015980,0.26039782,707.57,706.83,0.883]
[1735729016882,1.47675595,707.56,706.83,0.883]
[1735729017083,0.26039782,707.55,706.83,0.883]
[1735729017984,0.26037836,707.54,706.84,1.131]
[1735729018183,0.26037836,707.53,706.84,1.131]
[1735729018384,0.26037836,707.52,706.84,1.131]
[1735729018585,0.26037836,707.51,706.84,1.131]
[1735729018786,0.26037836,707.5,706.84,1.131]
[1735729018986,1.47675595,707.56,706.84,1.131]
[1735729018987,0.26037836,707.49,706.84,1.131]
[1735729019282,0.26037836,707.48,706.84,1.131]
[1735729019585,1.47675595,707.56,706.84,1.131]
[1735729025188,0.26040247,707.55,706.84,1.131]
[1735729025390,1.47675595,707.56,706.84,1.131]
[1735729026298,0.26033837,707.55,706.84,1.131]
[1735729026497,0.26033837,707.54,706.84,1.131]
[1735729026794,0.26033837,707.53,706.84,1.131]
[1735729026998,0.26033837,707.52,706.84,1.131]
[1735729027292,0.26033837,707.51,706.84,1.131]
[1735729027494,0.26033837,707.5,706.84,1.131]
[1735729027792,0.26032457,707.49,706.84,1.131]
[1735729027994,0.00032457,707.48,706.84,1.131]
[1735729028190,0.00032457,707.57,706.84,1.131]
[1735729028591,0.28265355,707.58,706.84,1.131]
[1735729031994,0.28265355,707.58,706.84,2.101]
[1735729040094,0.26030391,707.57,706.84,2.101]
[1735729041201,0.26030717,707.56,706.84,2.101]
[1735729041401,0.28265355,707.58,706.84,2.101]
[1735729045100,0.28265355,707.58,706.84,0.97]
[1735729050006,0.28265355,707.58,706.85,0.801]
[1735729051508,1.47633829,707.83,706.85,0.801]
[1735729052307,1.47612954,707.99,706.85,0.801]
[1735729052504,0.26021211,707.98,706.85,0.801]
[1735729054002,0.28249784,707.97,706.85,0.801]
[1735729054205,0.26021211,707.96,706.85,0.801]
[1735729054708,0.28249784,707.97,706.85,0.801]
[1735729054709,0.26024943,707.95,706.85,0.801]
[1735729055009,0.54275924,707.94,706.85,0.801]
[1735729055206,0.54276323,707.93,706.85,0.801]
[1735729055406,0.26024943,707.92,706.85,0.801]
[1735729056008,0.54276722,707.92,706.85,0.801]
[1735729056203,0.26024943,707.91,706.85,0.801]
[1735729057306,0.26025473,707.9,706.85,0.801]
[1735729057506,0.26025473,707.89,706.85,0.801]
[1735729057705,0.26025473,707.88,706.85,0.801]
[1735729057908,0.28253775,707.87,706.85,0.801]
[1735729058108,0.26025473,707.86,706.85,0.801]
[1735729058308,0.28254573,707.85,706.85,0.801]
[1735729058510,0.26025473,707.84,706.85,0.801]
[1735729058811,0.28255372,707.83,706.85,0.801]
[1735729059003,0.26025473,707.82,706.85,0.801]
[1735729059812,0.28255372,707.83,706.85,0.801]
[1735729060010,0.26028532,707.82,706.85,0.801]
[1735729061410,0.26028532,707.82,706.85,1.602]
[1735729062007,1.05906123,707.78,706.85,1.602]
[1735729062216,0.26028532,707.77,706.85,1.602]
[1735729062608,1.7366597,707.76,706.85,1.602]
[1735729062812,0.26027966,707.75,706.85,1.602]
[1735729063314,1.47638004,707.76,706.85,1.602]
[1735729063315,0.26028656,707.74,706.85,1.602]
[1735729063509,0.26028656,707.73,706.85,1.602]
[1735729063715,0.28259364,707.73,706.85,1.602]
[1735729064017,0.26033796,707.72,706.85,1.602]
[1735729064216,0.28260163,707.71,706.85,1.602]
[1735729064411,0.26033796,707.7,706.85,1.602]
[1735729064716,0.28260961,707.69,706.85,1.602]
[1735729064907,0.26033796,707.68,706.85,1.602]
[1735729065113,0.2826176,707.67,706.85,1.602]
[1735729072817,0.26032666,707.66,706.85,1.602]
[1735729073418,1.75906028,707.67,706.85,1.602]
[1735729075515,0.26032879,707.66,706.85,1.602]
[1735729076215,0.26032896,707.65,706.85,1.602]
[1735729076521,1.75906028,707.67,706.85,1.602]
[1735729076715,0.26033106,707.66,706.85,1.602]
[1735729078722,0.26033874,707.65,706.85,1.602]
[1735729078922,1.75906028,707.67,706.85,1.602]
[1735729079120,0.26033091,707.66,706.85,1.602]
[1735729079523,0.26033395,707.65,706.85,1.602]
[1735729079722,0.26033395,707.64,706.85,1.602]
[1735729079920,1.75906028,707.67,706.85,0.801]
[1735729080117,0.26033404,707.66,706.85,0.801]
[1735729081022,0.26032913,707.65,706.85,0.801]
[1735729081323,0.26032913,707.64,706.85,0.801]
[1735729081523,0.26032913,707.63,706.85,0.801]
[1735729081722,0.26032913,707.62,706.85,0.801]
[1735729082021,0.26032913,707.61,706.85,0.801]
[1735729082322,0.26032913,707.6,706.85,0.801]
[1735729082517,1.75906028,707.67,706.85,0.801]
[1735729082724,0.26033612,707.66,706.85,0.801]
[1735729082917,0.26033612,707.66,706.85,1.681]
[1735729083416,0.26033947,707.65,706.85,1.681]
[1735729083614,0.26033947,707.64,706.85,1.681]
[1735729083820,0.26033947,707.63,706.85,1.681]
[1735729084023,0.26033947,707.62,706.85,1.681]
[1735729084218,0.26033947,707.61,706.85,1.681]
[1735729084423,0.26033947,707.6,706.85,1.681]
[1735729084720,0.26033947,707.59,706.85,1.681]
[1735729084920,0.26033947,707.58,706.85,1.681]
[1735729085122,0.26033947,707.57,706.85,1.681]
[1735729085324,0.26033947,707.56,706.85,1.681]
[1735729085518,1.47655231,707.6,706.85,1.681]
[1735729088225,0.2826176,707.67,706.86,1.131]
[1735729092330,0.26029194,707.66,706.86,1.131]
[1735729093233,0.2826176,707.67,706.86,1.131]
[1735729094730,0.26028424,707.66,706.86,1.131]
[1735729096034,0.2826176,707.67,706.86,1.131]
[1735729098331,0.26029202,707.66,706.86,1.131]
[1735729099032,1.4765262,707.65,706.86,1.131]
[1735729099237,0.26029202,707.64,706.86,1.131]
[1735729099536,0.26029053,707.63,706.86,1.131]
[1735729099733,0.26029053,707.62,706.86,1.131]
[1735729099941,0.26029053,707.61,706.86,1.131]
[1735729100142,0.26029053,707.6,706.86,1.131]
[1735729100344,0.26029053,707.59,706.86,1.131]
[1735729100544,0.26029053,707.58,706.86,1.131]
[1735729100737,0.26029053,707.57,706.86,1.131]
[1735729100940,0.26029053,707.56,706.86,1.131]
[1735729101140,1.4765262,707.65,706.86,1.131]
[1735729101344,0.26029764,707.64,706.86,1.131]
[1735729102145,0.26030247,707.63,706.86,1.131]
[1735729102344,0.26030247,707.62,706.86,1.131]
[1735729102645,1.4765262,707.65,706.86,1.131]
[1735729102844,0.26030053,707.64,706.86,1.131]
[1735729104842,1.4765262,707.65,706.86,1.131]
[1735729105646,0.2826176,707.67,706.86,1.131]
[1735729115252,0.2826176,707.67,706.73,1.04834278]
[1735729115647,0.26029716,707.66,706.73,1.04834278]
[1735729116048,1.73684947,707.66,706.73,1.04834278]
[1735729116248,0.26029716,707.65,706.73,1.04834278]
[1735729116454,0.26029716,707.65,704.82,1.71426394]
[1735729116455,0.26029716,707.65,706.59,1.04834278]
[1735729117255,0.26029716,707.65,706.59,1.94234278]
[1735729118256,0.26030451,707.64,706.59,1.94234278]
[1735729118457,0.26030451,707.63,706.6,1.04834278]
[1735729118656,0.26030451,707.62,706.6,1.04834278]
[1735729118956,0.26030451,707.61,706.6,1.04834278]
[1735729119157,1.47655231,707.66,706.6,1.04834278]
[1735729119158,0.26030451,707.6,706.6,1.04834278]
[1735729119357,0.26030451,707.59,706.6,1.04834278]
[1735729119656,0.26030451,707.58,706.6,1.04834278]
[1735729119865,0.26030451,707.58,706.59,0.894]
[1735729119866,0.26030451,707.57,706.61,1.04834278]
[1735729120057,0.26030451,707.56,706.61,1.04834278]
[1735729120259,0.26030451,707.55,706.61,1.04834278]
[1735729120554,1.47655231,707.66,706.61,1.04834278]
[1735729120761,0.26030826,707.65,706.61,1.04834278]
[1735729120959,0.26030826,707.65,706.62,1.04834278]
[1735729122157,1.47655231,707.66,706.62,1.04834278]
[1735729122653,1.47655231,707.66,706.59,0.894]
[1735729123659,1.47655231,707.66,706.59,1.94234278]
[1735729125360,0.2826176,707.67,706.59,1.94234278]
[1735729126261,0.2826176,707.67,706.61,1.04834278]
[1735729128762,0.2826176,707.67,706.6,1.04834278]
[1735729130064,0.2826176,707.67,706.59,1.94234278]